[Event "IV Elllobregat Open Chess Tmnt"]
[Site "Sant Boi de Llobregat, Spain"]
[Date "2023.12.02"]
[Round "3.26"]
[White "Khademalsharieh, Sarasadat"]
[Black "Kamalidenova, Meruert"]
[Result "1-0"]
[TimeControl "90min/40moves + 15min/end + 30sec from move 1"]
[WhiteFideId "12512214"]
[BlackFideId "13712802"]
[WhiteElo "2481"]
[BlackElo "2359"]

1. Nf3 {[%clk 01:30:52]} {[%emt 00:00:07]} Nf6 {[%clk 01:30:54]} {[%emt
00:00:06]} 2. c4 {[%clk 01:31:11]} {[%emt 00:00:12]} g6 {[%clk 01:31:17]}
{[%emt 00:00:07]} 3. d4 {[%clk 01:31:19]} {[%emt 00:00:21]} Bg7 {[%clk
01:31:41]} {[%emt 00:00:06]} 4. g3 {[%clk 01:31:26]} {[%emt 00:00:24]} O-O
{[%clk 01:32:03]} {[%emt 00:00:06]} 5. Bg2 {[%clk 01:31:34]} {[%emt 00:00:23]}
d6 {[%clk 01:32:26]} {[%emt 00:00:07]} 6. Nc3 {[%clk 01:31:29]} {[%emt
00:00:35]} c5 {[%clk 01:32:37]} {[%emt 00:00:19]} 7. O-O {[%clk 01:31:10]}
{[%emt 00:00:50]} Nc6 {[%clk 01:33:01]} {[%emt 00:00:06]} 8. dxc5 {[%clk
01:29:55]} {[%emt 00:01:45]} dxc5 {[%clk 01:33:24]} {[%emt 00:00:06]} 9. Bf4
{[%clk 01:29:25]} {[%emt 00:01:00]} Be6 {[%clk 01:30:54]} {[%emt 00:02:59]} 10.
Ne5 {[%clk 01:28:49]} {[%emt 00:01:06]} Na5 {[%clk 01:27:45]} {[%emt 00:03:39]}
11. Nd3 {[%clk 01:13:59]} {[%emt 00:15:20]} Rc8 {[%clk 01:18:46]} {[%emt
00:09:29]} 12. b3 {[%clk 01:12:14]} {[%emt 00:02:15]} Nh5 {[%clk 01:18:46]}
{[%emt 00:00:30]} 13. Be5 {[%clk 01:06:54]} {[%emt 00:05:51]} f6 {[%clk
01:18:37]} {[%emt 00:00:39]} 14. Bf4 {[%clk 01:02:40]} {[%emt 00:04:44]} Bf7
{[%clk 01:15:45]} {[%emt 00:03:21]} 15. Be3 {[%clk 01:01:26]} {[%emt 00:01:44]}
f5 {[%clk 01:15:25]} {[%emt 00:00:50]} 16. Qc1 {[%clk 01:01:36]} {[%emt
00:00:20]} Qd6 {[%clk 01:06:59]} {[%emt 00:08:56]} 17. Nb5 {[%clk 00:51:15]}
{[%emt 00:10:51]} Qb6 {[%clk 01:06:42]} {[%emt 00:00:46]} 18. Rb1 {[%clk
00:50:45]} {[%emt 00:01:00]} a6 {[%clk 00:59:04]} {[%emt 00:08:09]} 19. Nc3
{[%clk 00:50:34]} {[%emt 00:00:41]} Qd6 {[%clk 00:59:19]} {[%emt 00:00:14]} 20.
Rd1 {[%clk 00:46:01]} {[%emt 00:05:03]} Bd4 {[%clk 00:59:08]} {[%emt 00:00:42]}
21. Bh6 {[%clk 00:41:35]} {[%emt 00:04:56]} Rfd8 {[%clk 00:57:45]} {[%emt
00:01:52]} 22. e3 {[%clk 00:40:39]} {[%emt 00:01:26]} Bh8 {[%clk 00:48:51]}
{[%emt 00:09:24]} 23. Nf4 {[%clk 00:39:32]} {[%emt 00:01:37]} Qe5 {[%clk
00:48:36]} {[%emt 00:00:46]} 24. Ncd5 {[%clk 00:39:22]} {[%emt 00:00:40]} Nc6
{[%clk 00:45:03]} {[%emt 00:04:02]} 25. Nxh5 {[%clk 00:35:32]} {[%emt
00:04:21]} gxh5 {[%clk 00:45:18]} {[%emt 00:00:15]} 26. Qa3 {[%clk 00:32:58]}
{[%emt 00:03:04]} Qd6 {[%clk 00:30:57]} {[%emt 00:14:51]} 27. Bg5 {[%clk
00:30:17]} {[%emt 00:03:11]} Kf8 {[%clk 00:30:47]} {[%emt 00:00:39]} 28. Bf4
{[%clk 00:26:39]} {[%emt 00:04:07]} e5 {[%clk 00:28:24]} {[%emt 00:02:53]} 29.
Bg5 {[%clk 00:26:45]} {[%emt 00:00:24]} Rd7 {[%clk 00:25:16]} {[%emt 00:03:38]}
30. Nc3 {[%clk 00:27:00]} {[%emt 00:00:15]} Qe6 {[%clk 00:23:30]} {[%emt
00:02:16]} 31. Rxd7 {[%clk 00:26:58]} {[%emt 00:00:32]} Qxd7 {[%clk 00:23:54]}
{[%emt 00:00:07]} 32. Rd1 {[%clk 00:27:16]} {[%emt 00:00:12]} Qe8 {[%clk
00:22:08]} {[%emt 00:02:16]} 33. Qxc5+ {[%clk 00:27:40]} {[%emt 00:00:06]} Kg7
{[%clk 00:22:24]} {[%emt 00:00:13]} 34. Rd6 {[%clk 00:25:43]} {[%emt 00:02:27]}
Nd4 {[%clk 00:21:33]} {[%emt 00:01:21]} 35. Qa5 {[%clk 00:24:12]} {[%emt
00:02:01]} Ne6 {[%clk 00:20:46]} {[%emt 00:01:18]} 36. Bh4 {[%clk 00:24:12]}
{[%emt 00:00:30]} b5 {[%clk 00:17:15]} {[%emt 00:04:02]} 37. Qxa6 {[%clk
00:21:00]} {[%emt 00:03:42]} bxc4 {[%clk 00:17:22]} {[%emt 00:00:23]} 38. bxc4
{[%clk 00:20:52]} {[%emt 00:00:38]} Nc5 {[%clk 00:17:18]} {[%emt 00:00:33]} 39.
Qa7 {[%clk 00:19:29]} {[%emt 00:01:54]} e4 {[%clk 00:15:19]} {[%emt 00:02:29]}
40. Nd5 {[%clk 00:33:53]} {[%emt 00:01:06]} Kf8 {[%clk 00:27:05]} {[%emt
00:03:44]} 41. Ne7 {[%clk 00:32:04]} {[%emt 00:02:20]} Nb7 {[%clk 00:24:56]}
{[%emt 00:02:39]} 42. Qxb7 {[%clk 00:30:45]} {[%emt 00:01:49]} Rb8 {[%clk
00:25:20]} {[%emt 00:00:06]} 43. Qc7 {[%clk 00:30:21]} {[%emt 00:00:54]} Be5
{[%clk 00:24:45]} {[%emt 00:01:05]} 44. Bg5 {[%clk 00:27:40]} {[%emt 00:03:11]}
Rb1+ {[%clk 00:21:15]} {[%emt 00:04:00]} 45. Bf1 {[%clk 00:28:06]} {[%emt
00:00:04]} Be6 {[%clk 00:21:42]} {[%emt 00:00:04]} 46. Bh6+ {[%clk 00:28:05]}
{[%emt 00:00:31]} Kf7 {[%clk 00:22:05]} {[%emt 00:00:06]} 47. Nc6+ {[%clk
00:28:24]} {[%emt 00:00:11]} Kg6 {[%clk 00:21:56]} {[%emt 00:00:39]} 48. Nxe5+
{[%clk 00:28:48]} {[%emt 00:00:05]} Kxh6 {[%clk 00:22:22]} {[%emt 00:00:04]} 49.
Qc6 {[%clk 00:28:51]} {[%emt 00:00:27]} 1-0

[Event "IV Elllobregat Open Chess Tmnt"]
[Site "Sant Boi de Llobregat, Spain"]
[Date "2023.12.02"]
[Round "3.27"]
[White "Suyarov, Mukhammadzokhid"]
[Black "Seo, Jung Min"]
[Result "1/2-1/2"]
[TimeControl "90min/40moves + 15min/end + 30sec from move 1"]
[WhiteFideId "14210495"]
[BlackFideId "1734687"]
[WhiteElo "2359"]
[BlackElo "2480"]

1. e4 {[%clk 01:30:49]} {[%emt 00:00:10]} c5 {[%clk 01:30:50]} {[%emt
00:00:10]} 2. Nf3 {[%clk 01:30:56]} {[%emt 00:00:23]} d6 {[%clk 01:31:19]}
{[%emt 00:00:02]} 3. Bb5+ {[%clk 01:30:34]} {[%emt 00:00:52]} Nd7 {[%clk
01:30:12]} {[%emt 00:01:37]} 4. d4 {[%clk 01:30:36]} {[%emt 00:00:27]} cxd4
{[%clk 01:30:31]} {[%emt 00:00:11]} 5. Qxd4 {[%clk 01:30:44]} {[%emt 00:00:21]}
a6 {[%clk 01:30:50]} {[%emt 00:00:12]} 6. Bxd7+ {[%clk 01:30:44]} {[%emt
00:00:30]} Bxd7 {[%clk 01:28:48]} {[%emt 00:02:33]} 7. O-O {[%clk 01:30:28]}
{[%emt 00:00:45]} Rc8 {[%clk 01:26:12]} {[%emt 00:03:06]} 8. c4 {[%clk
01:27:05]} {[%emt 00:03:54]} e5 {[%clk 01:13:46]} {[%emt 00:12:57]} 9. Qd3
{[%clk 01:24:38]} {[%emt 00:02:56]} b5 {[%clk 01:13:48]} {[%emt 00:00:28]} 10.
Na3 {[%clk 01:21:36]} {[%emt 00:03:31]} Qb6 {[%clk 01:11:12]} {[%emt 00:03:06]}
11. Be3 {[%clk 01:08:33]} {[%emt 00:13:33]} Qb7 {[%clk 01:11:13]} {[%emt
00:00:30]} 12. cxb5 {[%clk 01:08:35]} {[%emt 00:00:28]} axb5 {[%clk 01:11:04]}
{[%emt 00:00:39]} 13. Rac1 {[%clk 01:06:38]} {[%emt 00:02:26]} Rxc1 {[%clk
01:11:26]} {[%emt 00:00:08]} 14. Rxc1 {[%clk 01:07:01]} {[%emt 00:00:07]} Nf6
{[%clk 01:11:17]} {[%emt 00:00:38]} 15. Nd2 {[%clk 01:06:35]} {[%emt 00:00:56]}
Be7 {[%clk 01:11:35]} {[%emt 00:00:12]} 16. Bg5 {[%clk 01:05:18]} {[%emt
00:01:47]} Qb6 {[%clk 00:52:04]} {[%emt 00:20:01]} 17. Nc2 {[%clk 00:57:18]}
{[%emt 00:08:30]} O-O {[%clk 00:45:53]} {[%emt 00:06:40]} 18. Ne3 {[%clk
00:52:15]} {[%emt 00:05:32]} Qb8 {[%clk 00:42:55]} {[%emt 00:03:29]} 19. Ndf1
{[%clk 00:45:00]} {[%emt 00:07:45]} h6 {[%clk 00:43:14]} {[%emt 00:00:11]} 20.
Bxf6 {[%clk 00:44:29]} {[%emt 00:01:01]} Bxf6 {[%clk 00:43:42]} {[%emt
00:00:03]} 21. Rd1 {[%clk 00:44:03]} {[%emt 00:00:55]} Be6 {[%clk 00:43:19]}
{[%emt 00:00:53]} 22. a3 {[%clk 00:42:33]} {[%emt 00:02:00]} Qb7 {[%clk
00:39:43]} {[%emt 00:04:06]} 23. Ng3 {[%clk 00:37:54]} {[%emt 00:05:08]} Rd8
{[%clk 00:29:58]} {[%emt 00:10:16]} 24. Nd5 {[%clk 00:35:46]} {[%emt 00:02:38]}
Bg5 {[%clk 00:29:24]} {[%emt 00:01:04]} 25. Nf5 {[%clk 00:33:31]} {[%emt
00:02:45]} g6 {[%clk 00:22:54]} {[%emt 00:07:00]} 26. h4 {[%clk 00:31:23]}
{[%emt 00:02:38]} Bxd5 {[%clk 00:22:50]} {[%emt 00:00:34]} 27. hxg5 {[%clk
00:23:17]} {[%emt 00:08:36]} Bxe4 {[%clk 00:19:52]} {[%emt 00:03:28]} 28. Nxh6+
{[%clk 00:21:45]} {[%emt 00:02:00]} Kg7 {[%clk 00:19:56]} {[%emt 00:00:28]} 29.
Qg3 {[%clk 00:21:13]} {[%emt 00:01:02]} Qe7 {[%clk 00:18:56]} {[%emt 00:01:30]}
30. Re1 {[%clk 00:19:26]} {[%emt 00:02:17]} Bf5 {[%clk 00:16:02]} {[%emt
00:03:24]} 31. f4 {[%clk 00:18:36]} {[%emt 00:01:20]} Re8 {[%clk 00:15:32]}
{[%emt 00:01:00]} 32. fxe5 {[%clk 00:12:58]} {[%emt 00:06:08]} dxe5 {[%clk
00:15:58]} {[%emt 00:00:04]} 33. Rf1 {[%clk 00:13:07]} {[%emt 00:00:21]} Qd7
{[%clk 00:15:18]} {[%emt 00:01:10]} 34. Kh2 {[%clk 00:11:12]} {[%emt 00:02:25]}
Qe6 {[%clk 00:08:38]} {[%emt 00:07:11]} 35. Qf2 {[%clk 00:07:50]} {[%emt
00:03:51]} e4 {[%clk 00:08:57]} {[%emt 00:00:11]} 36. Nxf5+ {[%clk 00:07:56]}
{[%emt 00:00:24]} gxf5 {[%clk 00:09:22]} {[%emt 00:00:05]} 37. Qxf5 {[%clk
00:08:19]} {[%emt 00:00:06]} Qxf5 {[%clk 00:09:38]} {[%emt 00:00:14]} 38. Rxf5
{[%clk 00:08:43]} {[%emt 00:00:06]} e3 {[%clk 00:10:07]} {[%emt 00:00:01]} 39.
Rf1 {[%clk 00:09:02]} {[%emt 00:00:10]} Rd8 {[%clk 00:10:15]} {[%emt 00:00:22]}
40. Re1 {[%clk 00:20:25]} {[%emt 00:04:07]} Rd2 {[%clk 00:25:41]} {[%emt
00:00:04]} 1/2-1/2

[Event "IV Elllobregat Open Chess Tmnt"]
[Site "Sant Boi de Llobregat, Spain"]
[Date "2023.12.02"]
[Round "3.28"]
[White "Sorensen, Hampus"]
[Black "Lucas, Arthur"]
[Result "1/2-1/2"]
[TimeControl "90min/40moves + 15min/end + 30sec from move 1"]
[WhiteFideId "8703884"]
[BlackFideId "26093073"]
[WhiteElo "2479"]
[BlackElo "2316"]

1. d4 {[%emt 00:00:22]} Nf6 {[%emt 00:00:16]} 2. c4 {[%emt 00:00:34]} c5 {[%emt
00:00:44]} 3. d5 {[%emt 00:00:20]} g6 {[%emt 00:00:08]} 4. Nc3 {[%emt
00:01:33]} Bg7 {[%emt 00:00:05]} 5. e4 {[%emt 00:01:04]} d6 {[%emt 00:03:21]} 6.
Bd3 {[%emt 00:00:39]} O-O {[%emt 00:00:41]} 7. Nge2 {[%emt 00:00:19]} e6 {[%emt
00:00:29]} 8. O-O {[%emt 00:05:04]} exd5 {[%emt 00:07:19]} 9. cxd5 {[%emt
00:00:25]} a6 {[%emt 00:01:50]} 10. a4 {[%emt 00:01:50]} Nbd7 {[%emt 00:03:24]}
11. Ng3 {[%emt 00:07:16]} h5 {[%emt 00:02:34]} 12. Bg5 {[%emt 00:01:39]} Qc7
{[%emt 00:05:29]} 13. Qc1 {[%emt 00:08:18]} c4 {[%emt 00:04:39]} 14. Bc2 {[%emt
00:02:49]} Re8 {[%emt 00:06:10]} 15. h3 {[%emt 00:00:11]} Nc5 {[%emt 00:05:45]}
16. f4 {[%emt 00:09:44]} Nh7 {[%emt 00:01:32]} 17. Bh4 {[%emt 00:10:45]} Bd7
{[%emt 00:12:40]} 18. Kh1 {[%emt 00:03:22]} b5 {[%emt 00:00:06]} 19. axb5
{[%emt 00:00:49]} axb5 {[%emt 00:00:03]} 20. Rxa8 Rxa8 21. e5 {[%emt 00:07:22]}
dxe5 {[%emt 00:04:21]} 22. f5 {[%emt 00:01:16]} Nd3 {[%emt 00:06:23]} 23. Nxb5
{[%emt 00:03:46]} Qb6 {[%emt 00:02:08]} 24. Bxd3 {[%emt 00:00:16]} cxd3 {[%emt
00:00:34]} 25. Nc3 {[%emt 00:07:57]} Qd4 {[%emt 00:05:02]} 26. fxg6 {[%emt
00:00:31]} fxg6 {[%emt 00:03:02]} 27. Bg5 {[%emt 00:06:39]} h4 {[%emt
00:07:54]} 28. Nge4 {[%emt 00:04:29]} Bf5 {[%emt 00:03:37]} 29. Be3 {[%emt
00:01:00]} Qb4 {[%emt 00:00:51]} 30. Bc5 {[%emt 00:05:42]} Qc4 {[%emt
00:01:21]} 31. Qe3 {[%emt 00:00:12]} Bxe4 {[%emt 00:04:07]} 32. Nxe4 {[%emt
00:00:01]} Qxd5 {[%emt 00:00:19]} 33. Rd1 {[%emt 00:00:32]} Rd8 {[%emt
00:01:38]} 34. Be7 {[%emt 00:00:48]} Rd7 {[%emt 00:00:20]} 35. Bxh4 {[%emt
00:00:14]} Qd4 {[%emt 00:00:43]} 36. Qf3 {[%emt 00:03:16]} Rf7 {[%emt
00:00:38]} 37. Qg4 {[%emt 00:00:01]} Nf8 {[%emt 00:02:31]} 38. Bg5 {[%emt
00:02:56]} Qxb2 {[%emt 00:04:19]} 39. Rxd3 {[%emt 00:01:00]} Qb1+ 40. Rd1
{[%emt 00:00:06]} Rf1+ {[%emt 00:00:11]} 41. Rxf1 {[%emt 00:00:05]} Qxf1+
{[%emt 00:00:03]} 42. Kh2 {[%emt 00:01:05]} Qf5 {[%emt 00:02:16]} 43. Qe2
{[%emt 00:05:05]} Ne6 {[%emt 00:00:51]} 44. Qc4 {[%emt 00:02:56]} Kh7 {[%emt
00:01:17]} 45. Be3 Bh6 {[%emt 00:05:11]} 46. Nd6 {[%emt 00:03:13]} Qf6 {[%emt
00:05:02]} 47. Ne4 {[%emt 00:00:05]} Qf5 {[%emt 00:00:10]} 48. Nd6 {[%emt
00:01:18]} 1/2-1/2

[Event "IV Elllobregat Open Chess Tmnt"]
[Site "Sant Boi de Llobregat, Spain"]
[Date "2023.12.02"]
[Round "3.29"]
[White "Nazari, Arad"]
[Black "Lopez Martinez, Josep Manuel"]
[Result "1-0"]
[TimeControl "90min/40moves + 15min/end + 30sec from move 1"]
[WhiteFideId "12577324"]
[BlackFideId "2212943"]
[WhiteElo "2363"]
[BlackElo "2474"]

1. e4 {[%clk 01:30:56]} {[%emt 00:00:03]} c6 {[%clk 01:30:06]} {[%emt
00:00:54]} 2. Nc3 {[%clk 01:31:11]} {[%emt 00:00:15]} d5 {[%clk 01:30:18]}
{[%emt 00:00:18]} 3. Nf3 {[%clk 01:31:36]} {[%emt 00:00:05]} Bg4 {[%clk
01:30:17]} {[%emt 00:00:31]} 4. h3 {[%clk 01:32:01]} {[%emt 00:00:06]} Bxf3
{[%clk 01:30:26]} {[%emt 00:00:21]} 5. Qxf3 {[%clk 01:32:26]} {[%emt 00:00:05]}
e6 {[%clk 01:30:00]} {[%emt 00:00:56]} 6. Be2 {[%clk 01:32:48]} {[%emt
00:00:08]} d4 {[%clk 01:26:58]} {[%emt 00:03:31]} 7. Nb1 {[%clk 01:32:57]}
{[%emt 00:00:21]} Ne7 {[%clk 01:27:17]} {[%emt 00:00:11]} 8. h4 {[%clk
01:28:59]} {[%emt 00:04:29]} h5 {[%clk 01:26:40]} {[%emt 00:01:06]} 9. d3
{[%clk 01:28:24]} {[%emt 00:01:06]} Ng6 {[%clk 01:26:14]} {[%emt 00:00:55]} 10.
Qh3 {[%clk 01:28:29]} {[%emt 00:00:25]} Nd7 {[%clk 01:20:36]} {[%emt 00:06:08]}
11. g3 {[%clk 01:26:57]} {[%emt 00:02:02]} a5 {[%clk 01:18:33]} {[%emt
00:02:33]} 12. a4 {[%clk 01:26:35]} {[%emt 00:00:53]} Bb4+ {[%clk 01:16:08]}
{[%emt 00:02:53]} 13. Nd2 {[%clk 01:23:31]} {[%emt 00:03:35]} Qc7 {[%clk
01:10:31]} {[%emt 00:06:06]} 14. O-O {[%clk 01:22:23]} {[%emt 00:01:38]} O-O-O
{[%clk 01:07:40]} {[%emt 00:03:21]} 15. Ra2 {[%clk 01:14:04]} {[%emt 00:08:49]}
Kb8 {[%clk 01:04:59]} {[%emt 00:03:10]} 16. Nb3 {[%clk 00:56:58]} {[%emt
00:17:36]} Nc5 {[%clk 00:56:08]} {[%emt 00:09:21]} 17. Nd2 {[%clk 00:46:28]}
{[%emt 00:11:00]} Ne5 {[%clk 00:40:49]} {[%emt 00:15:48]} 18. Nb1 {[%clk
00:39:34]} {[%emt 00:07:26]} Na6 {[%clk 00:39:51]} {[%emt 00:01:27]} 19. Bf4
{[%clk 00:37:59]} {[%emt 00:02:04]} Bd6 {[%clk 00:38:54]} {[%emt 00:01:27]} 20.
c3 {[%clk 00:36:35]} {[%emt 00:01:55]} Ng4 {[%clk 00:33:31]} {[%emt 00:05:52]}
21. Bxd6 {[%clk 00:31:58]} {[%emt 00:05:08]} Qxd6 {[%clk 00:31:21]} {[%emt
00:02:39]} 22. Bxg4 {[%clk 00:32:12]} {[%emt 00:00:16]} hxg4 {[%clk 00:31:46]}
{[%emt 00:00:05]} 23. Qxg4 {[%clk 00:32:40]} {[%emt 00:00:02]} g6 {[%clk
00:31:52]} {[%emt 00:00:23]} 24. Rd1 {[%clk 00:25:11]} {[%emt 00:08:00]} Qc7
{[%clk 00:30:16]} {[%emt 00:02:05]} 25. Na3 {[%clk 00:24:14]} {[%emt 00:01:28]}
Nc5 {[%clk 00:28:12]} {[%emt 00:02:33]} 26. Qe2 {[%clk 00:20:40]} {[%emt
00:04:04]} f5 {[%clk 00:24:28]} {[%emt 00:04:14]} 27. exf5 {[%clk 00:14:18]}
{[%emt 00:06:53]} exf5 {[%clk 00:24:32]} {[%emt 00:00:26]} 28. Nc4 {[%clk
00:13:49]} {[%emt 00:00:59]} dxc3 {[%clk 00:19:27]} {[%emt 00:05:34]} 29. bxc3
{[%clk 00:13:53]} {[%emt 00:00:26]} f4 {[%clk 00:18:13]} {[%emt 00:01:43]} 30.
Qe5 {[%clk 00:13:04]} {[%emt 00:01:19]} Rh5 {[%clk 00:17:27]} {[%emt 00:01:16]}
31. Qxc7+ {[%clk 00:13:08]} {[%emt 00:00:27]} Kxc7 {[%clk 00:17:52]} {[%emt
00:00:05]} 32. d4 {[%clk 00:11:10]} {[%emt 00:02:28]} fxg3 {[%clk 00:18:04]}
{[%emt 00:00:17]} 33. fxg3 {[%clk 00:11:36]} {[%emt 00:00:05]} g5 {[%clk
00:10:02]} {[%emt 00:08:32]} 34. Re1 {[%clk 00:11:25]} {[%emt 00:00:42]} gxh4
{[%clk 00:06:14]} {[%emt 00:04:17]} 35. dxc5 {[%clk 00:10:55]} {[%emt
00:01:00]} Rxc5 {[%clk 00:06:41]} {[%emt 00:00:03]} 36. Re4 {[%clk 00:08:47]}
{[%emt 00:02:38]} hxg3 {[%clk 00:06:31]} {[%emt 00:00:40]} 37. Rb2 {[%clk
00:05:03]} {[%emt 00:04:15]} b5 {[%clk 00:05:05]} {[%emt 00:01:55]} 38. Ne3
{[%clk 00:03:56]} {[%emt 00:01:37]} Rxc3 {[%clk 00:04:00]} {[%emt 00:01:35]} 39.
axb5 {[%clk 00:03:57]} {[%emt 00:00:29]} cxb5 {[%clk 00:03:34]} {[%emt
00:00:56]} 40. Rxb5 {[%clk 00:18:36]} {[%emt 00:00:51]} Kc6 {[%clk 00:18:08]}
{[%emt 00:00:55]} 41. Rxa5 {[%clk 00:17:05]} {[%emt 00:02:03]} Rd2 {[%clk
00:11:32]} {[%emt 00:07:05]} 42. Ra6+ {[%clk 00:16:39]} {[%emt 00:00:57]} Kb7
{[%clk 00:04:04]} {[%emt 00:07:57]} 43. Ra1 {[%clk 00:16:54]} {[%emt 00:00:13]}
Re2 {[%clk 00:01:55]} {[%emt 00:02:40]} 44. Rb4+ {[%clk 00:17:17]} {[%emt
00:00:07]} Kc6 {[%clk 00:01:51]} {[%emt 00:00:34]} 45. Nf5 {[%clk 00:16:43]}
{[%emt 00:01:05]} Kc5 {[%clk 00:01:34]} {[%emt 00:00:46]} 46. Rb8 {[%clk
00:12:23]} {[%emt 00:04:51]} Rec2 {[%clk 00:00:54]} {[%emt 00:01:09]} 47. Rd1
{[%clk 00:12:39]} {[%emt 00:00:13]} Kc6 {[%clk 00:00:50]} {[%emt 00:00:34]} 48.
Nd4+ {[%clk 00:12:33]} {[%emt 00:00:36]} 1-0

[Event "IV Elllobregat Open Chess Tmnt"]
[Site "Sant Boi de Llobregat, Spain"]
[Date "2023.12.02"]
[Round "3.30"]
[White "Garcia Ramos, Daniel"]
[Black "Omonov, Asrorjon"]
[Result "0-1"]
[TimeControl "90min/40moves + 15min/end + 30sec from move 1"]
[WhiteFideId "32010311"]
[BlackFideId "14212552"]
[WhiteElo "2461"]
[BlackElo "2224"]

1. d4 {[%clk 01:30:57]} {[%emt 00:00:02]} Nf6 {[%clk 01:30:37]} {[%emt
00:00:23]} 2. Nf3 {[%clk 01:31:19]} {[%emt 00:00:08]} e6 {[%clk 01:30:58]}
{[%emt 00:00:11]} 3. c4 {[%clk 01:31:26]} {[%emt 00:00:23]} b6 {[%clk
01:31:22]} {[%emt 00:00:06]} 4. g3 {[%clk 01:30:43]} {[%emt 00:01:12]} Ba6
{[%clk 01:31:45]} {[%emt 00:00:07]} 5. Qc2 {[%clk 01:29:59]} {[%emt 00:01:15]}
b5 {[%clk 01:32:06]} {[%emt 00:00:10]} 6. cxb5 {[%clk 01:25:51]} {[%emt
00:04:37]} Bxb5 {[%clk 01:32:30]} {[%emt 00:00:06]} 7. Bg2 {[%clk 01:25:44]}
{[%emt 00:00:37]} Bc6 {[%clk 01:32:30]} {[%emt 00:00:30]} 8. O-O {[%clk
01:22:11]} {[%emt 00:04:02]} h6 {[%clk 01:31:28]} {[%emt 00:01:33]} 9. Bd2
{[%clk 01:16:26]} {[%emt 00:06:15]} a5 {[%clk 01:30:00]} {[%emt 00:01:58]} 10.
Rc1 {[%clk 01:15:46]} {[%emt 00:01:09]} Ra7 {[%clk 01:25:37]} {[%emt 00:04:54]}
11. a4 {[%clk 01:03:54]} {[%emt 00:12:22]} Bb4 {[%clk 01:15:30]} {[%emt
00:10:36]} 12. Bxb4 {[%clk 01:02:18]} {[%emt 00:02:07]} axb4 {[%clk 01:15:08]}
{[%emt 00:00:52]} 13. Nbd2 {[%clk 01:02:29]} {[%emt 00:00:18]} O-O {[%clk
01:14:20]} {[%emt 00:01:19]} 14. Bf1 {[%clk 00:45:28]} {[%emt 00:17:31]} d6
{[%clk 01:12:09]} {[%emt 00:02:40]} 15. Qb3 {[%clk 00:42:28]} {[%emt 00:03:30]}
Qd7 {[%clk 01:08:03]} {[%emt 00:04:36]} 16. Qxb4 {[%clk 00:33:44]} {[%emt
00:09:14]} Rxa4 {[%clk 01:04:39]} {[%emt 00:03:54]} 17. Rxa4 {[%clk 00:34:08]}
{[%emt 00:00:06]} Bxa4 {[%clk 01:05:07]} {[%emt 00:00:02]} 18. e4 {[%clk
00:32:09]} {[%emt 00:02:29]} Bc6 {[%clk 00:59:55]} {[%emt 00:05:42]} 19. Bd3
{[%clk 00:32:32]} {[%emt 00:00:08]} Rd8 {[%clk 00:56:39]} {[%emt 00:03:46]} 20.
Qa5 {[%clk 00:32:32]} {[%emt 00:00:30]} Ne8 {[%clk 00:45:05]} {[%emt 00:12:04]}
21. b4 {[%clk 00:24:39]} {[%emt 00:08:23]} Qe7 {[%clk 00:37:54]} {[%emt
00:07:40]} 22. b5 {[%clk 00:23:50]} {[%emt 00:01:19]} Bd7 {[%clk 00:37:47]}
{[%emt 00:00:37]} 23. Qa7 {[%clk 00:22:39]} {[%emt 00:01:41]} Kf8 {[%clk
00:35:52]} {[%emt 00:02:25]} 24. Kg2 {[%clk 00:21:44]} {[%emt 00:01:24]} e5
{[%clk 00:34:55]} {[%emt 00:01:28]} 25. Nf1 {[%clk 00:19:28]} {[%emt 00:02:45]}
c5 {[%clk 00:32:00]} {[%emt 00:03:27]} 26. Qa3 {[%clk 00:14:30]} {[%emt
00:05:28]} exd4 {[%clk 00:30:56]} {[%emt 00:01:32]} 27. N1d2 {[%clk 00:14:40]}
{[%emt 00:00:21]} Bc8 {[%clk 00:20:02]} {[%emt 00:11:24]} 28. Nc4 {[%clk
00:10:54]} {[%emt 00:04:15]} Bb7 {[%clk 00:19:03]} {[%emt 00:01:29]} 29. Qa7
{[%clk 00:09:38]} {[%emt 00:01:47]} f5 {[%clk 00:17:45]} {[%emt 00:01:48]} 30.
Re1 {[%clk 00:07:19]} {[%emt 00:02:49]} Nf6 {[%clk 00:15:56]} {[%emt 00:02:19]}
31. Nxd6 {[%clk 00:07:05]} {[%emt 00:00:44]} Rxd6 {[%clk 00:14:55]} {[%emt
00:01:31]} 32. Qxb8+ {[%clk 00:07:30]} {[%emt 00:00:05]} Rd8 {[%clk 00:15:20]}
{[%emt 00:00:04]} 33. Qe5 {[%clk 00:01:57]} {[%emt 00:06:03]} fxe4 {[%clk
00:15:06]} {[%emt 00:00:44]} 34. Qxe7+ {[%clk 00:02:19]} {[%emt 00:00:08]} Kxe7
{[%clk 00:15:32]} {[%emt 00:00:04]} 35. Nd2 {[%clk 00:02:39]} {[%emt 00:00:11]}
Kd7 {[%clk 00:11:32]} {[%emt 00:04:30]} 36. Nxe4 {[%clk 00:01:08]} {[%emt
00:02:01]} c4 {[%clk 00:11:55]} {[%emt 00:00:06]} 37. f3 {[%clk 00:00:36]}
{[%emt 00:01:02]} cxd3 {[%clk 00:11:30]} {[%emt 00:00:56]} 38. Nc5+ {[%clk
00:00:58]} {[%emt 00:00:08]} Kc8 {[%clk 00:11:56]} {[%emt 00:00:04]} 39. Nxd3
{[%clk 00:01:20]} {[%emt 00:00:09]} Re8 {[%clk 00:10:47]} {[%emt 00:01:39]} 40.
Rxe8+ {[%clk 00:15:38]} {[%emt 00:01:12]} Nxe8 {[%clk 00:26:16]} {[%emt
00:00:01]} 41. Kf2 {[%clk 00:15:54]} {[%emt 00:00:15]} Kc7 {[%clk 00:26:33]}
{[%emt 00:00:14]} 42. Nf4 {[%clk 00:14:03]} {[%emt 00:02:20]} Kd6 {[%clk
00:25:38]} {[%emt 00:01:25]} 43. Ke2 {[%clk 00:13:46]} {[%emt 00:00:47]} g5
{[%clk 00:25:40]} {[%emt 00:00:28]} 44. Nd3 {[%clk 00:12:36]} {[%emt 00:01:40]}
Nc7 {[%clk 00:25:57]} {[%emt 00:00:13]} 45. b6 {[%clk 00:12:15]} {[%emt
00:00:51]} Nd5 {[%clk 00:26:14]} {[%emt 00:00:12]} 46. Nf2 {[%clk 00:12:41]}
{[%emt 00:00:04]} Ba6+ {[%clk 00:21:59]} {[%emt 00:04:46]} 47. Kd2 {[%clk
00:13:04]} {[%emt 00:00:06]} Nxb6 {[%clk 00:22:23]} {[%emt 00:00:06]} 48. Ng4
{[%clk 00:13:25]} {[%emt 00:00:08]} Nc4+ {[%clk 00:22:50]} {[%emt 00:00:04]} 49.
Kc1 {[%clk 00:13:03]} {[%emt 00:00:52]} d3 {[%clk 00:22:47]} {[%emt 00:00:33]}
50. Nxh6 {[%clk 00:12:56]} {[%emt 00:00:36]} d2+ {[%clk 00:23:14]} {[%emt
00:00:04]} 51. Kc2 {[%clk 00:12:34]} {[%emt 00:00:52]} Bb5 {[%clk 00:23:19]}
{[%emt 00:00:25]} 52. Nf5+ {[%clk 00:12:59]} {[%emt 00:00:04]} Kd5 {[%clk
00:23:35]} {[%emt 00:00:14]} 53. Ne3+ {[%clk 00:13:01]} {[%emt 00:00:29]} Nxe3+
{[%clk 00:24:04]} {[%emt 00:00:02]} 54. Kxd2 {[%clk 00:13:24]} {[%emt
00:00:06]} Nf1+ {[%clk 00:24:31]} {[%emt 00:00:03]} 0-1